fUST/lending_fUST_20250914
["ID","MTS","AMOUNT","RATE_DAILY","PERIOD"]
[385436100,1757848248182,-480.0,0.00022191,3]
[385436101,1757848248191,-480.0,0.00022191,3]
[385436102,1757848248201,-480.0,0.00022191,3]
[385436103,1757848248211,-480.0,0.00022191,3]
[385436104,1757848248220,-480.0,0.00022191,3]
[385436105,1757848248230,-480.0,0.00022191,3]
[385436106,1757848248239,-687.97,0.00022191,3]
[385436107,1757848248249,-480.0,0.00022191,3]
[385436108,1757848248259,-422.29586882,0.00022191,3]
[385436109,1757848248269,-480.0,0.00022191,3]
[385436110,1757848248279,-480.0,0.00022191,3]
[385436111,1757848248288,-480.0,0.00022191,3]
[385436112,1757848248298,-480.0,0.00022191,3]
[385436113,1757848248308,-480.0,0.00022191,3]
[385436114,1757848248317,-480.0,0.00022191,3]
[385436115,1757848248327,-480.0,0.00022191,3]
[385436116,1757848248336,-480.0,0.00022191,3]
[385436117,1757848248346,-480.0,0.00022191,3]
[385436118,1757848248355,-480.0,0.00022191,3]
[385436119,1757848248364,-480.0,0.00022191,3]
[385436120,1757848248374,-480.0,0.00022191,3]
[385436121,1757848248383,-480.0,0.00022191,3]
[385436122,1757848248393,-480.0,0.00022191,3]
[385436123,1757848248402,-480.0,0.00022191,3]
[385436124,1757848248412,-480.0,0.00022191,3]
[385436125,1757848248422,-480.0,0.00022191,3]
[385436126,1757848248431,-480.0,0.00022191,3]
[385436127,1757848248441,-1025.01,0.00022191,3]
[385436128,1757848248450,-594.31436209,0.00022191,3]
[385436129,1757848248460,-480.0,0.00022191,3]
[385436130,1757848248470,-480.0,0.00022191,3]
[385436131,1757848248480,-480.0,0.00022191,3]
[385436132,1757848248489,-573.02,0.00022191,3]
[385436133,1757848248499,-480.0,0.00022191,3]
[385436134,1757848248509,-1016.64,0.00022191,3]
[385436135,1757848248519,-480.0,0.00022191,3]
[385436136,1757848248529,-480.0,0.00022191,3]
[385436137,1757848248538,-690.5,0.00022191,3]
[385436138,1757848248548,-480.0,0.00022191,3]
[385436139,1757848248557,-666.38,0.00022191,3]
[385436140,1757848248567,-480.0,0.00022191,3]
[385436141,1757848248577,-480.0,0.00022191,3]
[385436142,1757848248587,-480.0,0.00022191,3]
[385436143,1757848248597,-330.89036688,0.00022191,3]
[385436144,1757848248608,-1368.78,0.00022191,3]
[385436145,1757848248617,-480.0,0.00022191,3]
[385436146,1757848248631,-480.0,0.00022191,3]
[385436147,1757848248642,-936.39,0.00022191,3]
[385436148,1757848248656,-480.0,0.00022191,3]
[385436149,1757848248667,-480.0,0.00022191,3]
[385436150,1757848248677,-565.34,0.00022191,3]
[385436151,1757848248687,-480.0,0.00022191,3]
[385436152,1757848248696,-1380.36,0.00022191,3]
[385436153,1757848248705,-480.0,0.00022191,3]
[385436154,1757848248715,-482.26976189,0.00022191,3]
[385436155,1757848248725,-480.0,0.00022191,3]
[385436156,1757848248735,-480.0,0.00022191,3]
[385436157,1757848248745,-480.0,0.00022191,3]
[385436158,1757848248758,-480.0,0.00022191,3]
[385436159,1757848248773,-480.0,0.00022191,3]
[385436160,1757848248784,-480.0,0.00022191,3]
[385436161,1757848248794,-667.44,0.00022191,3]
[385436162,1757848248805,-551.33,0.00022191,3]
[385436163,1757848248816,-488.90367269,0.00022191,3]
[385436164,1757848248827,-392.75427858,0.00022191,3]
[385436165,1757848248840,-483.14983147,0.00022191,3]
[385436166,1757848248850,-497.52071276,0.00022191,3]
[385436167,1757848248860,-480.0,0.00022191,3]
[385436168,1757848248870,-1288.99,0.00022191,3]
[385436169,1757848248881,-480.0,0.00022191,3]
[385436170,1757848248891,-480.0,0.00022191,3]
[385436171,1757848248903,-480.0,0.00022191,3]
[385436172,1757848248915,-499.66,0.00022191,3]
[385436173,1757848248924,-480.0,0.00022191,3]
[385436174,1757848248934,-480.0,0.00022191,3]
[385436175,1757848248943,-480.0,0.00022191,3]
[385436176,1757848248953,-480.0,0.00022191,3]
[385436177,1757848248963,-483.69540513,0.00022191,3]
[385436178,1757848248972,-480.0,0.00022191,3]
[385436179,1757848248983,-846.21,0.00022191,3]
[385436180,1757848248993,-480.0,0.00022191,3]
[385436181,1757848249006,-480.0,0.00022191,3]
[385436182,1757848249016,-481.95685399,0.00022191,3]
[385436183,1757848249026,-571.62686111,0.00022191,3]
[385436184,1757848249036,-893.09,0.00022191,3]
[385436185,1757848249046,-480.0,0.00022191,3]
[385436186,1757848249055,-480.0,0.00022191,3]
[385436187,1757848249065,-480.0,0.00022191,3]
[385436188,1757848249075,-480.0,0.00022191,3]
[385436189,1757848249087,-480.0,0.00022191,3]
[385436190,1757848249098,-480.0,0.00022191,3]
[385436191,1757848249108,-480.0,0.00022191,3]
[385436192,1757848249117,-723.75,0.00022191,3]
[385436193,1757848249127,-480.0,0.00022191,2]
[385436194,1757848249137,-480.0,0.00022191,3]
[385436195,1757848249146,-511.98257675,0.00022191,3]
[385436196,1757848249156,-648.31,0.00022191,3]
[385436197,1757848249165,-480.0,0.00022191,3]
[385436198,1757848249175,-480.0,0.00022191,3]
[385436199,1757848249185,-480.0,0.00022191,3]
[385436200,1757848249195,-480.0,0.00022191,3]
[385436201,1757848249205,-750.32,0.00022191,3]
[385436202,1757848249215,-480.0,0.00022191,3]
[385436203,1757848249224,-480.0,0.00022191,3]
[385436204,1757848249234,-499.71,0.00022191,3]
[385436205,1757848249243,-480.0,0.00022191,3]
[385436206,1757848249252,-784.7,0.00022191,3]
[385436207,1757848249261,-480.0,0.00022191,3]
[385436208,1757848249272,-1003.85,0.00022191,3]
[385436209,1757848249282,-480.0,0.00022191,3]
[385436210,1757848249291,-2478.43,0.00022191,3]
[385436211,1757848249300,-503.84656703,0.00022191,3]
[385436212,1757848249309,-728.38,0.00022191,3]
[385436213,1757848249318,-480.0,0.00022191,3]
[385436214,1757848249327,-3947.87,0.00022191,3]
[385436215,1757848249337,-480.0,0.00022191,3]
[385436216,1757848249346,-480.0,0.00022191,3]
[385436217,1757848249356,-1247.64,0.00022191,3]
[385436218,1757848249365,-480.0,0.00022191,3]
[385436219,1757848249374,-480.0,0.00022191,3]
[385436220,1757848249384,-480.0,0.00022191,3]
[385436221,1757848249393,-480.0,0.00022191,3]
[385436222,1757848249402,-193.47136876,0.00022191,3]
[385436223,1757848249411,-1035.36,0.00022191,3]
[385436224,1757848249420,-480.0,0.00022191,3]
[385436225,1757848249430,-617.84981511,0.00022191,3]
[385436226,1757848249439,-480.0,0.00022191,3]
[385436227,1757848249448,-6258.65,0.00022191,3]
[385436228,1757848249457,-480.0,0.00022191,3]
[385436229,1757848249466,-480.0,0.00022191,3]
[385436230,1757848249475,-689.3,0.00022191,3]
[385436231,1757848249485,-460.80676862,0.00022191,3]
[385436232,1757848249494,-480.0,0.00022191,3]
[385436233,1757848249503,-480.0,0.00022191,3]
[385436234,1757848249513,-1342.3,0.00022191,3]
[385436235,1757848249522,-480.0,0.00022191,3]
[385436236,1757848249531,-500.89758025,0.00022191,3]
[385436237,1757848249540,-1083.54,0.00022191,3]
[385436238,1757848249549,-1562.82,0.00022191,3]
[385436239,1757848249558,-480.0,0.00022191,3]
[385436240,1757848249567,-1047.27,0.00022191,3]
[385436241,1757848249577,-480.0,0.00022191,3]
[385436242,1757848249586,-598.87,0.00022191,3]
[385436243,1757848249595,-480.0,0.00022191,3]
[385436244,1757848249605,-480.0,0.00022191,3]
[385436245,1757848249648,-493.65732287,0.00022191,3]
[385436246,1757848249658,-1053.32,0.00022191,3]
[385436247,1757848249668,-2933.76,0.00022191,3]
[385436248,1757848249677,-504.73,0.00022191,3]
[385436249,1757848249686,-480.0,0.00022191,3]
[385436250,1757848249696,-430.42,0.00022191,2]
[385436251,1757848249706,-482.28867914,0.00022191,3]
[385436252,1757848249716,-3464.17,0.00022191,3]
[385436253,1757848249726,-1534.77,0.00022191,3]
[385436254,1757848249737,-480.0,0.00022191,3]
[385436255,1757848249750,-919.31,0.00022191,3]
[385436256,1757848249762,-788.82,0.00022191,3]
[385436257,1757848249774,-480.0,0.00022191,3]
[385436258,1757848249792,-687.67,0.00022191,3]
[385436259,1757848249809,-815.55,0.00022191,3]
[385436260,1757848249821,-480.0,0.00022191,3]
[385436261,1757848249831,-480.0,0.00022191,3]
[385436262,1757848249841,-480.0,0.00022191,3]
[385436263,1757848249850,-539.46,0.00022191,3]
[385436264,1757848249860,-480.0,0.00022191,3]
[385436265,1757848249870,-909.52,0.00022191,3]
[385436266,1757848249879,-30703.17,0.00022191,3]
[385436267,1757848249888,-480.0,0.00022191,3]
[385436268,1757848249897,-1256.64,0.00022191,3]
[385436269,1757848249907,-638.54,0.00022191,3]
[385436270,1757848249917,-480.0,0.00022191,3]
[385436271,1757848249926,-2432.68,0.00022191,3]
[385436272,1757848249935,-480.0,0.00022191,3]
[385436273,1757848249945,-1474.35,0.00022191,3]
[385436274,1757848249954,-480.0,0.00022191,3]
[385436275,1757848249964,-880.7,0.00022191,3]
[385436276,1757848249973,-1325.95,0.00022191,3]
[385436277,1757848249983,-652.52,0.00022191,3]
[385436278,1757848249991,-530.48,0.00022191,3]
[385436279,1757848250001,-480.0,0.00022191,3]
[385436280,1757848250013,-480.0,0.00022191,3]
[385436281,1757848250024,-7732.59,0.00022191,3]
[385436282,1757848250033,-480.0,0.00022191,3]
[385436283,1757848250042,-876.42,0.00022191,3]
[385436284,1757848250052,-488.49358104,0.00022191,3]
[385436285,1757848250061,-581.54,0.00022191,3]
[385436286,1757848250071,-1551.97,0.00022191,3]
[385436287,1757848250080,-2967.21,0.00022191,3]
[385436288,1757848250089,-3592.64,0.00022191,3]
[385436289,1757848250099,-492.54362881,0.00022191,3]
[385436290,1757848250108,-732.64,0.00022191,3]
[385436291,1757848250117,-480.0,0.00022191,3]
[385436292,1757848250126,-480.0,0.00022191,3]
[385436293,1757848250136,-480.0,0.00022191,3]
[385436294,1757848250145,-1136.98,0.00022191,3]
[385436295,1757848250155,-1518.04,0.00022191,3]
[385436296,1757848250165,-480.0,0.00022191,3]
[385436297,1757848250174,-480.0,0.00022191,3]
[385436298,1757848250183,-1618.02,0.00022191,3]
[385436299,1757848250192,-480.0,0.00022191,3]
[385436300,1757848250202,-1573.78,0.00022191,3]
[385436301,1757848250211,-1076.66,0.00022191,3]
[385436302,1757848250220,-857.85,0.00022191,3]
[385436303,1757848250229,-948.22,0.00022191,3]
[385436304,1757848250238,-1000.0,0.00022191,3]
[385436305,1757848250247,-789.95,0.00022191,3]
[385436306,1757848250256,-1106.17,0.00022191,3]
[385436307,1757848250266,-3091.17,0.00022191,3]
[385436308,1757848250276,-2384.36,0.00022191,3]
[385436309,1757848250286,-480.0,0.00022191,3]
[385436310,1757848250295,-480.0,0.00022191,3]
[385436311,1757848250305,-480.0,0.00022191,3]
[385436312,1757848250314,-480.0,0.00022191,3]
[385436313,1757848250323,-480.0,0.00022191,3]
[385436314,1757848250332,-480.0,0.00022191,3]
[385436315,1757848250341,-480.0,0.00022191,3]
[385436316,1757848250351,-2799.76,0.00022191,3]
[385436317,1757848250360,-663.08,0.00022191,3]
[385436318,1757848250369,-4270.68,0.00022191,3]
[385436319,1757848250378,-480.0,0.00022191,3]
[385436320,1757848250387,-480.0,0.00022191,3]
[385436321,1757848250396,-480.0,0.00022191,3]
[385436322,1757848250405,-659.56,0.00022191,3]
[385436323,1757848250415,-480.0,0.00022191,3]
[385436324,1757848250424,-500.0,0.00022191,3]
[385436325,1757848250433,-480.0,0.00022191,3]
[385436326,1757848250442,-490.46318283,0.00022191,3]
[385436327,1757848250451,-6982.92,0.00022191,3]
[385436328,1757848250460,-480.0,0.00022191,3]
[385436329,1757848250469,-480.0,0.00022191,3]
[385436330,1757848250478,-645.98,0.00022191,3]
[385436331,1757848250488,-480.0,0.00022191,3]
[385436332,1757848250498,-480.0,0.00022191,3]
[385436333,1757848250508,-480.0,0.00022191,3]
[385436334,1757848250517,-510.71,0.00022191,3]
[385436335,1757848250527,-480.0,0.00022191,3]
[385436336,1757848250537,-958.12,0.00022191,3]
[385436337,1757848250546,-4485.92,0.00022191,3]
[385436338,1757848250556,-1161.98,0.00022191,3]
[385436339,1757848250565,-480.0,0.00022191,3]
[385436340,1757848250574,-480.0,0.00022191,3]
[385436341,1757848250583,-458.08336739,0.00022191,3]
[385436342,1757848250592,-670.01,0.00022191,3]
[385436343,1757848250601,-480.0,0.00022191,3]
[385436344,1757848250610,-1617.82,0.00022191,3]
[385436345,1757848250619,-480.0,0.00022191,3]
[385436346,1757848250631,-480.0,0.00022191,3]
[385436347,1757848250640,-1146.22,0.00022191,3]
[385436348,1757848250649,-480.0,0.00022191,3]
[385436349,1757848250658,-480.0,0.00022191,3]
[385436350,1757848250667,-1944.11,0.00022191,3]
[385436351,1757848250676,-480.0,0.00022191,3]
[385436352,1757848250686,-501.76,0.00022191,3]
[385436353,1757848250695,-1230.62,0.00022191,3]
[385436354,1757848250704,-658.87,0.00022191,3]
[385436355,1757848250713,-480.0,0.00022191,3]
[385436356,1757848250723,-480.0,0.00022191,3]
[385436357,1757848250732,-480.0,0.00022191,2]
[385436358,1757848250741,-511.07,0.00022191,3]
[385436359,1757848250750,-480.0,0.00022191,3]
[385436360,1757848250759,-1022.83,0.00022191,3]
[385436361,1757848250768,-480.0,0.00022191,3]
[385436362,1757848250778,-1013.94,0.00022191,3]
[385436363,1757848250787,-951.0,0.00022191,3]
[385436364,1757848250797,-480.0,0.00022191,3]
[385436365,1757848250806,-2097.59,0.00022191,3]
[385436366,1757848250815,-15124.66,0.00022191,3]
[385436367,1757848250824,-484.13133767,0.00022191,3]
[385436368,1757848250834,-1061.43,0.00022191,3]
[385436369,1757848250843,-857.5,0.00022191,3]
[385436370,1757848250853,-480.0,0.00022191,3]
[385436371,1757848250863,-480.0,0.00022191,3]
[385436372,1757848250872,-712.18,0.000222,7]
[385436373,1757848250881,-1002.66,0.000222,7]
[385436374,1757848250891,-151.0,0.000222,8]
[385436375,1757848250900,-733.57956956,0.00022209,2]
[385436376,1757848250909,-168.0,0.0002223,2]
[385436377,1757848250918,-160.0,0.00022289,4]
[385436378,1757848250928,-151.0,0.000223,9]
[385436379,1757848250937,-413.28586389,0.00022306,2]
[385436380,1757848250947,-168.0,0.00022338,2]
[385436381,1757848250956,-300.0,0.00022354,20]
[385436382,1757848250966,-300.0,0.00022354,20]
[385436383,1757848250975,-300.0,0.00022354,20]
[385436384,1757848250985,-300.0,0.00022354,20]
[385436385,1757848250994,-300.0,0.00022354,20]
[385436386,1757848251003,-300.0,0.00022354,20]
[385436387,1757848251015,-300.0,0.00022354,20]
[385436388,1757848251026,-300.0,0.00022354,20]
[385436389,1757848251035,-300.0,0.00022354,20]
[385436390,1757848251045,-300.0,0.00022354,20]
[385436391,1757848251055,-300.0,0.00022354,20]
[385436392,1757848251065,-300.0,0.00022354,20]
[385436393,1757848251075,-300.0,0.00022354,20]
[385436394,1757848251084,-300.0,0.00022354,20]
[385436395,1757848251093,-300.0,0.00022354,20]
[385436396,1757848251104,-600.0,0.00022354,20]
[385436397,1757848251113,-6034.14557234,0.00022354,2]
[385436398,1757848251123,-2487.2064383,0.00022398,2]
[385436399,1757848251132,-2189.32,0.00022445,3]
[385436400,1757848251141,-1739.24,0.00022445,3]
[385436401,1757848251151,-869.62,0.00022445,3]
[385436402,1757848251160,-434.82,0.00022445,3]
[385436403,1757848251170,-168.0,0.00022456,2]
[385436404,1757848251180,-785.0,0.00022465,2]
[385436405,1757848251189,-157.0,0.00022465,2]
[385436406,1757848251199,-480.0,0.00022465,3]
[385436407,1757848251208,-480.0,0.00022465,3]
[385436408,1757848251217,-819.88,0.00022465,3]
[385436409,1757848251227,-625.38679982,0.00022465,3]
[385436410,1757848251236,-480.0,0.00022465,3]
[385436411,1757848251245,-480.0,0.00022465,3]
[385436412,1757848251254,-482.38488293,0.00022465,3]
[385436413,1757848251264,-500.0,0.00022465,3]
[385436414,1757848251273,-370.37340846,0.00022465,3]
[385436415,1757848251283,-480.0,0.00022465,3]
[385436416,1757848251292,-174.05452607,0.00022465,3]
[385436417,1757848251302,-480.0,0.00022465,3]
[385436418,1757848251311,-252.51594518,0.00022465,3]
[385436419,1757848251321,-496.34320298,0.00022465,3]
[385436420,1757848251330,-480.0,0.00022465,3]
[385436421,1757848251339,-480.0,0.00022465,3]
[385436422,1757848251349,-480.0,0.00022465,3]
[385436423,1757848251358,-480.0,0.00022465,3]
[385436424,1757848251367,-480.0,0.00022465,3]
[385436425,1757848251376,-480.0,0.00022465,3]
[385436426,1757848251386,-480.0,0.00022465,3]
[385436427,1757848251395,-480.0,0.00022465,3]
[385436428,1757848251404,-480.0,0.00022465,3]
[385436429,1757848251414,-480.0,0.00022465,3]
[385436430,1757848251423,-480.0,0.00022465,3]
[385436431,1757848251433,-480.0,0.00022465,3]
[385436432,1757848251442,-486.61611064,0.00022465,3]
[385436433,1757848251452,-492.45475913,0.00022465,3]
[385436434,1757848251461,-480.0,0.00022465,3]
[385436435,1757848251470,-176.30827754,0.00022465,3]
[385436436,1757848251480,-544.42,0.00022465,3]
[385436437,1757848251489,-480.0,0.00022465,3]
[385436438,1757848251499,-1258.04,0.00022465,3]
[385436439,1757848251508,-480.0,0.00022465,3]
[385436440,1757848251517,-194.00700206,0.00022465,3]
[385436441,1757848251528,-480.0,0.00022465,3]
[385436442,1757848251538,-480.0,0.00022465,3]
[385436443,1757848251547,-492.66034118,0.00022465,3]
[385436444,1757848251557,-480.0,0.00022465,3]
[385436445,1757848251566,-474.87444054,0.00022465,3]
[385436446,1757848251575,-480.0,0.00022465,3]
[385436447,1757848251585,-480.0,0.00022465,3]
[385436448,1757848251595,-480.0,0.00022465,3]
[385436449,1757848251604,-894.71,0.00022465,3]
[385436450,1757848251613,-489.31667598,0.00022465,3]
[385436451,1757848251623,-480.0,0.00022465,3]
[385436452,1757848251632,-480.0,0.00022465,3]
[385436453,1757848251642,-480.0,0.00022465,3]
[385436454,1757848251651,-362.62069649,0.00022465,3]
[385436455,1757848251661,-352.45239227,0.00022465,3]
[385436456,1757848251670,-480.0,0.00022465,3]
[385436457,1757848251680,-1132.55,0.00022465,3]
[385436458,1757848251689,-480.0,0.00022465,3]
[385436459,1757848251699,-606.16213892,0.00022465,3]
[385436460,1757848251709,-488.81539216,0.00022465,3]
[385436461,1757848251721,-480.0,0.00022465,3]
[385436462,1757848251730,-480.0,0.00022465,3]
[385436463,1757848251739,-480.0,0.00022465,3]
[385436464,1757848251748,-480.0,0.00022465,3]
[385436465,1757848251758,-480.0,0.00022465,3]
[385436466,1757848251768,-480.0,0.00022465,3]
[385436467,1757848251778,-509.5,0.00022465,3]
[385436468,1757848251787,-391.42073882,0.00022465,3]
[385436469,1757848251796,-480.0,0.00022465,3]
[385436470,1757848251807,-1152.28,0.00022465,3]
[385436471,1757848251816,-508.5,0.00022465,3]
[385436472,1757848251826,-480.0,0.00022465,3]
[385436473,1757848251835,-2411.26,0.00022465,3]
[385436474,1757848251845,-1189.25,0.00022465,3]
[385436475,1757848251854,-480.0,0.00022465,3]
[385436476,1757848251863,-480.0,0.00022465,3]
[385436477,1757848251873,-480.0,0.00022465,3]
[385436478,1757848251883,-480.0,0.00022465,3]
[385436479,1757848251892,-914.96,0.00022465,3]
[385436480,1757848251902,-480.0,0.00022465,3]
[385436481,1757848251911,-480.0,0.00022465,3]
[385436482,1757848251921,-480.0,0.00022465,3]
[385436483,1757848251930,-533.93273446,0.00022465,3]
[385436484,1757848251940,-480.0,0.00022465,3]
[385436485,1757848251949,-480.0,0.00022465,3]
[385436486,1757848251959,-480.0,0.00022465,3]
[385436487,1757848251969,-808.99,0.00022465,3]
[385436488,1757848251979,-480.0,0.00022465,3]
[385436489,1757848251988,-480.0,0.00022465,3]
[385436490,1757848251997,-480.0,0.00022465,3]
[385436491,1757848252007,-480.0,0.00022465,3]
[385436492,1757848252016,-480.0,0.00022465,3]
[385436493,1757848252026,-687.97,0.00022465,3]
[385436494,1757848252038,-482.21828813,0.00022465,3]
[385436495,1757848252048,-600.78350018,0.00022465,3]
[385436496,1757848252058,-482.21103764,0.00022465,3]
[385436497,1757848252067,-480.0,0.00022465,3]
[385436498,1757848252077,-480.0,0.00022465,3]
[385436499,1757848252087,-480.0,0.00022465,3]
[385436500,1757848252096,-559.59756732,0.00022465,3]
[385436501,1757848252106,-480.0,0.00022465,3]
[385436502,1757848252116,-480.0,0.00022465,3]
[385436503,1757848252126,-480.0,0.00022465,3]
[385436504,1757848252135,-480.0,0.00022465,3]
[385436505,1757848252144,-480.0,0.00022465,3]
[385436506,1757848252154,-1025.01,0.00022465,3]
[385436507,1757848252163,-492.42338486,0.00022465,3]
[385436508,1757848252173,-480.0,0.00022465,3]
[385436509,1757848252183,-480.0,0.00022465,3]
[385436510,1757848252193,-573.02,0.00022465,3]
[385436511,1757848252203,-480.0,0.00022465,3]
[385436512,1757848252212,-1016.64,0.00022465,3]
[385436513,1757848252222,-480.0,0.00022465,3]
[385436514,1757848252232,-480.0,0.00022465,3]
[385436515,1757848252241,-690.5,0.00022465,3]
[385436516,1757848252251,-666.38,0.00022465,3]
[385436517,1757848252260,-480.0,0.00022465,3]
[385436518,1757848252271,-480.0,0.00022465,3]
[385436519,1757848252281,-1368.78,0.00022465,3]
[385436520,1757848252290,-480.0,0.00022465,3]
[385436521,1757848252299,-480.0,0.00022465,3]
[385436522,1757848252309,-936.39,0.00022465,3]
[385436523,1757848252319,-480.0,0.00022465,3]
[385436524,1757848252328,-480.0,0.00022465,3]
[385436525,1757848252337,-565.34,0.00022465,3]
[385436526,1757848252346,-271.32192025,0.00022465,3]
[385436527,1757848252356,-1380.36,0.00022465,3]
[385436528,1757848252365,-480.0,0.00022465,3]
[385436529,1757848252374,-667.44,0.00022465,3]
[385436530,1757848252384,-551.33,0.00022465,3]
[385436531,1757848252393,-480.0,0.00022465,3]
[385436532,1757848252403,-1288.99,0.00022465,3]
[385436533,1757848252413,-480.0,0.00022465,3]
[385436534,1757848252422,-480.0,0.00022465,3]
[385436535,1757848252431,-486.25437665,0.00022465,3]
[385436536,1757848252441,-499.66,0.00022465,3]
[385436537,1757848252450,-480.0,0.00022465,3]
[385436538,1757848252459,-480.0,0.00022465,3]
[385436539,1757848252469,-846.21,0.00022465,3]
[385436540,1757848252478,-346.47676145,0.00022465,3]
[385436541,1757848252487,-893.09,0.00022465,3]
[385436542,1757848252497,-486.26986262,0.00022465,3]
[385436543,1757848252506,-480.0,0.00022465,3]
[385436544,1757848252516,-480.0,0.00022465,3]
[385436545,1757848252527,-480.0,0.00022465,3]
[385436546,1757848252536,-723.75,0.00022465,3]
[385436547,1757848252546,-480.0,0.00022465,2]
[385436548,1757848252555,-480.0,0.00022465,3]
[385436549,1757848252564,-648.31,0.00022465,3]
[385436550,1757848252574,-480.0,0.00022465,3]
[385436551,1757848252583,-480.0,0.00022465,3]
[385436552,1757848252592,-750.32,0.00022465,3]
[385436553,1757848252602,-480.0,0.00022465,3]
[385436554,1757848252611,-480.0,0.00022465,3]
[385436555,1757848252620,-499.71,0.00022465,3]
[385436556,1757848252630,-480.0,0.00022465,3]
[385436557,1757848252639,-784.7,0.00022465,3]
[385436558,1757848252649,-482.51337109,0.00022465,3]
[385436559,1757848252659,-1003.85,0.00022465,3]
[385436560,1757848252669,-308.52831937,0.00022465,3]
[385436561,1757848253144,2686.14460181,0.00020985,2]
[385436562,1757848253168,-17695.11308271,0.00020985,2]
[385436563,1757848253235,-1679.4758001,0.00020985,2]
[385436564,1757848253246,-420.5241999,0.00020985,2]
[385436565,1757848253608,-82320.14398056,0.00020985,2]
[385436566,1757848254190,-8912.26413099,0.00020985,2]
[385436567,1757848254203,-10000.01,0.00020985,2]
[385436568,1757848254216,-10000.01,0.00020985,2]
[385436569,1757848254230,-10000.01,0.00020985,2]
[385436570,1757848254242,-10000.01,0.00020985,2]
[385436571,1757848263165,300.0,0.00020984,2]
[385436573,1757848272606,151.98,0.00030262,120]
[385436574,1757848292842,629.31,0.00020975,3]
[385436575,1757848303493,872.16,0.00020975,3]
[385436576,1757848314203,436.08,0.00020975,3]
[385436577,1757848316056,151.0,0.000208,3]
[385436578,1757848316410,151.0,0.000196,2]
[385436579,1757848316837,151.0,0.000184,2]
[385436580,1757848322691,300.0,0.00020984,2]
[385436581,1757848324774,218.04,0.00020975,3]
[385436582,1757848335403,654.16,0.00020975,3]
[385436583,1757848354716,500.0,0.00020984,2]
[385436584,1757848354744,152.34060774,0.00020984,2]
[385436585,1757848354771,500.0,0.00020984,2]
[385436586,1757848354804,500.0,0.00020984,2]
[385436587,1757848354841,500.0,0.00020984,2]
[385436588,1757848354880,500.0,0.00020984,2]
[385436589,1757848354980,500.0,0.00020984,2]
[385436590,1757848355007,500.0,0.00020984,2]
[385436591,1757848355194,500.0,0.00020984,2]
[385436592,1757848355254,500.0,0.00020984,2]
[385436593,1757848355415,500.0,0.00020984,2]
[385436594,1757848355535,560.71342618,0.00020984,2]
[385436595,1757848355652,424.20596608,0.00020984,2]
[385436596,1757848355675,75.79403392,0.00020984,2]
[385436597,1757848355703,500.0,0.00020984,2]
[385436598,1757848378877,170.51409581,0.0002,2]
[385436599,1757848382297,2000.0,0.00027397,120]
[385436600,1757848382525,300.0,0.00020984,2]